Cogmind - Beta 11.1 @@@ ROGUE MODE // 2022.08.13 @ 12:38:29 Player: NoNeedToExplain Result: Self-destructed Performance ------------- Evolutions (8) 4000 Regions Visited (27) 5400 Robots Destroyed (314) 1570 Value Destroyed (13383) 13383 Prototype IDs (79) 1580 Alien Tech Used (2) 400 Bonus (5301) 5301 TOTAL SCORE: 31634 Bonus ------- High Alert Combat Kills 676 Follower Combat Kills 3003 Met Data Miner 300 Met Imprinter 300 Was Imprinted 300 Met Zhirov 300 Met Warlord at Base 500 MAIN.C Attacked Warlord 500 Warlord Defense Kills 134 Friendly Fire -712 Cogmind --------- Core Integrity 342/1450 Matter 110/300 Energy 99/100 System Corruption 39% Temperature Cool (0) Movement Core (50) Location -2/Research Parts ------- > --- POWER (3) -------- (None) > --- PROPULSION (6) --- (None) > --- UTILITY (11) ----- (None) > --- WEAPON (3) ------- (None) > --- INVENTORY (5) ---- Myomer Leg Experimental Cooling System Enhanced Quantum Rifle Zionite Laser-H Enhanced Nova Cannon Peak State ------------ > --- POWER ------------ Zionite Heavy DM Reactor Quantum Reactor Light Quantum Reactor > --- PROPULSION ------- Zionite Composite Leg II Zionite Composite Leg II Biometal Leg Experimental Biometal Leg Zionite Supercomposite Leg Zionite Supercomposite Leg > --- UTILITY ---------- Experimental Cooling System High-capacity Storage Unit Advanced Force Field Wardrone Bay > --- WEAPON ----------- Zionite Laser-H Zionite Phaser-H Zionite Phaser-H > --- INVENTORY -------- Particle Reactor Light Quantum Reactor Myomer Leg Zionite Composite Leg II Biometal Leg Advanced Cryofiber Web Experimental Cooling System Advanced Coolant Injector Matter Compressor Quantum Capacitor Advanced Phase Shifter Advanced Force Field Zionite Laser-H Enhanced Nova Cannon Enhanced Nova Cannon Micro-nuke Launcher Ragnarok Missile Launcher Vortex Lance CR-A16's Behemoth Slayer [Rating: 253] Favorites ----------- Power Cooled Deuterium Engine Engine Cooled Deuterium Engine Power Core Micro Fission Core Reactor Light Antimatter Reactor Propulsion Flexi-carbon Leg Treads Light Treads Leg Flexi-carbon Leg Wheel Armored Wheel Hover Unit Zionite Glidesys I Utility High-capacity Storage Unit Device Improved Transmission Jammer Storage High-capacity Storage Unit Processor Improved Targeting Computer Hackware Hacking Suite Protection Layered Light Armor Plating Weapon Flak Gun Energy Gun Zionite Phaser-S Energy Cannon Matter Neutralizer Ballistic Gun Flak Gun Ballistic Cannon Assault Cannon Launcher Proton Missile Launcher Special Weapon Mining Laser Slashing Weapon Great Axe Piercing Weapon Vortex Lance Build | -11 -10 -10 -9 -9 -8 -7 -7 -7 -7 -6 -6 -6 -6 -6 -5 -5 -5 -5 -5 -4 -4 -4 -4 -4 -3 -3 -2 ------- Run | Scr Mat Min Mat Min Mat Fac Low Low Dat Pro Fac Low Low Zio Pro Fac Upp Upp Zhi Pro Fac Upp Upp War Pro Res Res Slots Evolved 16 | . . . 2 . 2 2 . . . . 2 . . . . 2 . . . . 2 . . . . 2 2 Power 2 | . . . . . . . . . . . 1 . . . . . . . . . . . . . . . 1 Propulsion 4 | . . . 1 . . 1 . . . . 1 . . . . 1 . . . . . . . . . . . Utility 9 | . . . . . 2 1 . . . . . . . . . 1 . . . . 2 . . . . 2 1 Weapon 1 | . . . 1 . . . . . . . . . . . . . . . . . . . . . . . . Parts Attached 487 | 6 4 3 17 2 24 35 11 14 7 9 57 13 18 2 8 18 2 2 5 39 47 9 9 20 20 19 67 Power 33 | 1 . . 3 . 1 2 . . . . 2 . 1 . 1 . . . . 4 4 1 1 2 1 2 7 Engine 12 | 1 . . 3 . 1 2 . . . . 2 . 1 . . . . . . . 1 . 1 . . . . Core 7 | . . . . . . . . . . . . . . . 1 . . . . 1 3 1 . . 1 . . Reactor 14 | . . . . . . . . . . . . . . . . . . . . 3 . . . 2 . 2 7 Propulsion 87 | 2 . . 7 . 5 9 . . . 5 9 . 1 . . 7 . . 3 8 9 . . 3 1 6 12 Treads 17 | 2 . . 6 . 4 5 . . . . . . . . . . . . . . . . . . . . . Leg 67 | . . . 1 . . 4 . . . 5 9 . 1 . . 7 . . 3 8 9 . . 3 1 5 11 Wheel 2 | . . . . . 1 . . . . . . . . . . . . . . . . . . . . 1 . Hover 1 | . . . . . . . . . . . . . . . . . . . . . . . . . . . 1 Flight . | . . . . . . . . . . . . . . . . . . . . . . . . . . . . Utility 203 | 1 3 . 1 . 7 17 1 5 4 . 25 8 10 2 4 6 2 2 2 15 20 7 1 11 11 6 32 Device 136 | . 2 . . . 2 11 1 3 3 . 15 6 7 2 2 4 1 2 1 9 16 5 1 6 7 6 24 Storage 11 | 1 1 . 1 . 1 1 . . . . 1 . . . 1 . . . . . . 1 . 2 . . 1 Processor 9 | . . . . . 1 . . . . . . . 1 . . 1 . . . 1 1 . . . . . 4 Hackware 1 | . . . . . . 1 . . . . . . . . . . . . . . . . . . . . . Protection 46 | . . . . . 3 4 . 2 1 . 9 2 2 . 1 1 1 . 1 5 3 1 . 3 4 . 3 Artifact . | . . . . . . . . . . . . . . . . . . . . . . . . . . . . Weapon 164 | 2 1 3 6 2 11 7 10 9 3 4 21 5 6 . 3 5 . . . 12 14 1 7 4 7 5 16 Energy Gun 27 | 2 . 1 2 . 2 . . . . . . . . . . . . . . 8 5 1 2 . . . 4 Energy Cannon 21 | . . . 1 . . . 1 . . . . . . . . . . . . . 4 . 3 2 2 2 6 Ballistic Gun 60 | . 1 1 2 1 8 5 5 5 3 3 13 2 3 . . 4 . . . 1 2 . . . . 1 . Ballistic Cannon 5 | . . . 1 1 . . . . . . . . . . . . . . . . . . . . 3 . . Launcher 29 | . . . . . . 1 4 4 . 1 3 2 3 . 1 1 . . . 2 1 . 2 . 1 . 3 Special Weapon 1 | . . 1 . . . . . . . . . . . . . . . . . . . . . . . . . Impact Weapon . | . . . . . . . . . . . . . . . . . . . . . . . . . . . . Slashing Weapon 8 | . . . . . 1 1 . . . . 5 1 . . . . . . . . . . . . . . . Piercing Weapon 13 | . . . . . . . . . . . . . . . 2 . . . . 1 2 . . 2 1 2 3 Special Melee Weapon . | . . . . . . . . . . . . . . . . . . . . . . . . . . . . Unidentified Prototypes 38 | . . . 3 . 1 3 . 1 1 . 2 . . 1 . 1 . . 3 5 2 1 . 3 3 1 7 Corrupted Parts 4 | . . . . . . . . . . . . . 1 . . . . . . 3 . . . . . . . System Corruption 34 | . . . . . . . . . . . . . 10 . . . . . . 24 . . . . . . . Parts Lost 83 | . . . . . 3 2 . . . 4 3 . 2 . 2 . 1 . . 14 16 . . 4 7 2 23 Power 15 | . . . . . . . . . . . . . 1 . 1 . . . . 5 2 . . . 1 1 4 Propulsion 26 | . . . . . 1 . . . . 3 2 . 1 . . . . . . 3 7 . . 1 1 1 6 Utility 26 | . . . . . 1 2 . . . . 1 . . . 1 . 1 . . 4 3 . . 2 3 . 8 Weapon 16 | . . . . . 1 . . . . 1 . . . . . . . . . 2 4 . . 1 2 . 5 Highest Loss Streak 17 | . . . . . 1 1 . . . 2 1 . 2 . 2 . 1 . . 7 14 . . 2 5 2 17 To Critical Strikes . | . . . . . . . . . . . . . . . . . . . . . . . . . . . . Average Slot Usage (%) 96 | . 97 100 99 100 99 99 100 99 74 99 98 98 98 100 99 99 99 100 99 95 92 99 100 97 93 61 76 Engine 7 | . 14 14 11 11 9 7 7 7 7 7 13 13 12 13 9 5 5 5 5 1 1 . . 2 . . . Core 1 | . . . . . . . . . . . . . . . 3 5 5 5 5 1 4 10 9 2 2 2 . Reactor 1 | . . . . . . . . . . . . . . . . . . . . 4 2 . . 4 7 5 12 Treads 8 | . 28 28 32 33 24 15 . . . . . . . . . . . . . . . . . . . . . Leg 22 | . . . . . . 14 30 30 30 30 33 33 33 33 33 34 35 35 34 34 29 31 31 31 30 28 25 Device 13 | . 11 14 11 11 9 14 15 15 12 15 11 12 12 13 12 16 12 11 10 12 17 16 15 16 24 9 18 Storage 7 | . 14 14 11 11 9 7 7 7 7 7 6 6 6 6 6 5 5 5 5 5 5 9 10 9 5 4 3 Processor 5 | . . . . . 8 7 7 7 7 7 6 6 5 6 6 5 5 5 5 6 10 10 10 7 . . 1 Protection 5 | . . . . . 9 7 7 6 5 7 6 5 5 6 6 4 9 11 11 7 3 4 5 5 8 . 1 Energy Gun 1 | . 21 14 2 . . . . . . . . . . . . . . . . 8 6 15 1 . . . 2 Energy Cannon 2 | . . . 8 11 . . . . . . . . . . . . . . . . 4 . 13 14 9 6 4 Ballistic Gun 13 | . 6 12 10 11 25 22 21 22 2 22 18 15 19 20 17 15 17 17 17 6 3 . . . . . . Naked Turns 20 | . . . . . . . . . . . . . . . . . . . . . . . . . . . 20 Heaviest Build 191 | 13 30 31 41 41 76 76 78 78 71 71 92 89 92 86 86 80 88 88 87 107 111 112 126 135 168 178 191 Greatest Support 182 | 40 40 40 60 60 60 112 72 72 72 72 92 92 92 92 92 112 112 112 146 159 159 145 145 155 155 150 182 Greatest Overweight (x) 6 | . . . . . 6 1 1 1 . 1 1 . . . . . . . . . 1 . . . 1 1 1 Average Overweight (x) . | . . . . . 1 . . . . . . . . . . . . . . . . . . . . . . Largest Inventory Capacity 20 | 8 15 15 15 15 20 20 20 20 20 20 20 20 20 20 20 20 20 20 20 20 20 20 20 20 20 20 20 Average Capacity 19 | 7 14 15 15 15 19 20 20 20 20 20 20 20 20 20 20 20 20 20 20 20 20 20 20 19 20 20 19 Most Carried 20 | 6 13 15 15 15 20 20 20 20 20 20 20 20 20 20 20 20 20 20 20 20 20 20 20 20 20 20 20 Average Carried 18 | 3 9 14 14 14 19 19 19 19 19 19 19 19 19 19 19 19 19 20 19 19 18 19 20 19 19 19 18 Final Capacity 20 | 8 15 15 15 15 20 20 20 20 20 20 20 20 20 20 20 20 20 20 20 20 20 20 20 20 20 20 5 Final Carried 20 | 6 13 15 15 15 20 20 20 20 20 20 20 20 20 20 20 20 20 20 20 20 20 20 20 20 19 18 5 Class Distribution -------------------- 20% | Tank 18% | Scavenger-Tank 16% | Scavenger-Gunner 14% | Mutant 12% | Gunner 6% | Scavenger-Skirmisher 4% | Scavenger-Mutant 4% | Generator-Mutant Dominant Class ---------------- Mutant | -10/Materials Mutant | -10/Mines Scavenger-Gunner | -9/Materials Scavenger-Gunner | -9/Mines Scavenger-Gunner | -8/Materials Gunner | -7/Factory Tank | -7/Lower Caves Tank | -7/Lower Caves Mutant | -7/Data Miner Tank | -6/Proximity Caves Tank | -6/Factory Mutant | -6/Lower Caves Tank | -6/Lower Caves Tank | -6/Zion Tank | -5/Proximity Caves Scavenger-Tank | -5/Factory Scavenger-Tank | -5/Upper Caves Scavenger-Tank | -5/Upper Caves Scavenger-Tank | -5/Zhirov Scavenger-Tank | -4/Proximity Caves Scavenger-Mutant | -4/Factory Scavenger-Tank | -4/Upper Caves Scavenger-Tank | -4/Upper Caves Scavenger-Skirmisher | -4/Warlord Scavenger-Tank | -3/Proximity Caves Scavenger-Mutant | -3/Research Generator-Mutant | -2/Research Resources | -11 -10 -10 -9 -9 -8 -7 -7 -7 -7 -6 -6 -6 -6 -6 -5 -5 -5 -5 -5 -4 -4 -4 -4 -4 -3 -3 -2 ----------- Run | Scr Mat Min Mat Min Mat Fac Low Low Dat Pro Fac Low Low Zio Pro Fac Upp Upp Zhi Pro Fac Upp Upp War Pro Res Res Matter Collected 14158 | 193 217 161 488 104 1146 864 352 413 150 538 2681 1060 1332 41 359 371 71 176 . 878 660 159 196 299 472 207 570 Remotely . | . . . . . . . . . . . . . . . . . . . . . . . . . . . . Salvage Created 14518 | . 217 52 1030 230 1139 1163 429 568 . 81 2052 388 773 . 323 232 45 209 . 849 812 391 244 64 721 373 2133 Parts 670 | . 12 4 66 15 74 52 19 16 . 10 87 14 37 . 25 17 3 13 . 33 33 7 3 . 20 19 91 Haulers Intercepted 14 | . 1 . 5 . 3 1 . 1 . . 2 . . . . 1 . . . . . . . . . . . Recyclers Shooed 12 | . . . 4 . . . . . . . 5 . . . . . . . . . 2 . . . . 1 . Parts Field Recycled . | . . . . . . . . . . . . . . . . . . . . . . . . . . . . Retrieved Matter . | . . . . . . . . . . . . . . . . . . . . . . . . . . . . Parts Self-Destructed 228 | . . . . . . . 7 6 . 29 . 4 22 . 31 . 24 47 . 31 . 8 2 . 17 . . Prevented 45 | . . . . . . . 6 10 . . . 3 14 . 2 . . . . 8 . . . . 2 . . Kills | -11 -10 -10 -9 -9 -8 -7 -7 -7 -7 -6 -6 -6 -6 -6 -5 -5 -5 -5 -5 -4 -4 -4 -4 -4 -3 -3 -2 ------- Run | Scr Mat Min Mat Min Mat Fac Low Low Dat Pro Fac Low Low Zio Pro Fac Upp Upp Zhi Pro Fac Upp Upp War Pro Res Res Combat Hostiles Destroyed 257 | . 4 2 12 7 29 26 7 10 . 4 34 2 18 . 9 6 1 6 . 10 8 6 5 1 13 2 35 Melee 15 | . . . . . . . . . . . . . . . 1 . . . . . . . . . . 1 13 Guns 137 | . 4 2 3 3 29 25 3 5 . 1 24 . 5 . 4 2 1 6 . 4 3 5 1 . . . 7 Cannons 26 | . . . 9 3 . . . . . . . . . . . . . . . . 4 . . 1 7 1 1 AOE 62 | . . . . . . 1 2 3 . 3 9 2 13 . 4 4 . . . 2 . . 3 . 2 . 14 Classes Destroyed 20 | . 3 1 6 . 4 1 . . . . . 2 . . . . . 1 . 1 . . . . . 1 . Worker 10 | . . . 1 . 5 . . . . . 1 . . . . . . . . . . . . . . 1 2 Builder 4 | . . . . . 1 . . . . . 1 . . . . . . . . . 1 . . . . . 1 Tunneler 3 | . . . . . 1 1 . . . . 1 . . . . . . . . . . . . . . . . Hauler 14 | . 1 . 5 . 3 1 . 1 . . 2 . . . . 1 . . . . . . . . . . . Recycler 17 | . . . 4 . . 3 . . . . 4 . . . . . . . . . 2 . . . . 2 2 Minesweeper 2 | . . . . . . . . . . . . 2 . . . . . . . . . . . . . . . Operator 3 | . 1 . . . 1 . . . . . 1 . . . . . . . . . . . . . . . . Watcher 5 | . . . 3 . 1 . . . . . . . . . . . . . . . 1 . . . . . . Swarmer 74 | . . . 3 3 10 8 . 1 . 3 14 . 8 . 4 4 . 4 . . . . . . 1 1 10 Grunt 85 | . 4 1 2 2 11 8 2 6 . 1 8 2 4 . 2 1 1 1 . 6 2 4 2 1 5 . 9 Brawler 13 | . . . 1 2 . . 1 . . . 3 . 4 . 1 . . . . . . . 1 . . . . Duelist 6 | . . . . . 1 . . 2 . . . . . . . . . . . 1 . . 1 . 1 . . Protector 1 | . . . . . . . . . . . . . . . . . . 1 . . . . . . . . . Sentry 33 | . . . 6 . 6 6 . 1 . . 6 . 2 . . . . . . . 1 . 1 . 1 . 3 Specialist 3 | . . . . . . . . . . . . . . . . . . . . . . . . . . 1 2 Hunter 10 | . . . . . 1 . . . . . . . . . . 1 . . . 2 2 2 . . . . 2 Programmer 26 | . . . . . . 4 1 . . . 3 . . . 2 . . . . . 3 . . . 4 . 9 Behemoth 2 | . . . . . . . . . . . . . . . . . . . . 1 . . . . 1 . . Decomposer 3 | . . . . . . . . . . . . 3 . . . . . . . . . . . . . . . Samaritan 3 | . . . . . . . . . . . . 3 . . . . . . . . . . . . . . . Assembled 1 | . . 1 . . . . . . . . . . . . . . . . . . . . . . . . . Thug 1 | . . . . . . . 1 . . . . . . . . . . . . . . . . . . . . Savage 2 | . . . . . . . 2 . . . . . . . . . . . . . . . . . . . . Best Kill Streak 9 | . 2 1 3 3 8 4 3 3 . 3 5 2 8 . 4 4 1 2 . 4 4 3 3 1 4 2 9 Combat Bots Only 8 | . 2 1 3 3 8 4 3 3 . 3 5 2 8 . 4 4 1 2 . 4 2 3 3 1 4 1 7 Max Kills in Single Turn 5 | . 1 1 1 1 2 1 1 2 . 3 4 1 2 . 2 4 1 1 . 2 2 2 3 1 2 1 5 Gunslinging 1 | . . . . . 1 . . . . . . . 1 . . . . . . . . 1 . . . . . Exploded 5 | . . . . . . 1 1 2 . 3 3 1 2 . 2 4 . . . 2 . . 3 . 2 . 5 Melee 1 | . . . . . . . . . . . . . . . 1 . . . . . . . . . . 1 1 Uniques/NPCs Destroyed . | . . . . . . . . . . . . . . . . . . . . . . . . . . . . Combat | -11 -10 -10 -9 -9 -8 -7 -7 -7 -7 -6 -6 -6 -6 -6 -5 -5 -5 -5 -5 -4 -4 -4 -4 -4 -3 -3 -2 -------- Run | Scr Mat Min Mat Min Mat Fac Low Low Dat Pro Fac Low Low Zio Pro Fac Upp Upp Zhi Pro Fac Upp Upp War Pro Res Res Damage Taken 22441 | . 237 75 369 83 1081 1315 201 431 . 282 1312 46 698 . 495 204 172 253 . 2897 2311 305 314 722 1042 1325 6271 Core 2476 | . 48 13 48 12 28 91 . 19 . 56 96 10 82 . 33 49 . 35 . 282 230 10 30 81 10 105 1108 Absorbed by Shields 5012 | . . . . . . . 72 81 . 103 469 47 251 . 212 74 4 . . 209 64 320 329 214 326 . 2237 Redirected to Shielding 310 | . . . . . . . . . . . . . . . . . . . . 310 . . . . . . . Regen/Repaired (Parts) 35 | . . . . . . . . . . . 35 . . . . . . . . . . . . . . . . Core Remaining (%) 79 | 100 . 75 . 85 94 . . . . 76 . . . . 74 . . . . 63 . . . . 61 91 . Volleys Fired 604 | . 18 17 40 13 52 50 12 18 . 6 63 4 24 . 24 13 4 13 . 24 50 21 7 6 23 12 90 Largest 3 | . 2 2 3 3 3 3 3 3 . 3 3 2 3 . 3 3 3 3 . 3 3 3 3 3 3 2 3 Hottest 300 | . 90 100 135 135 84 84 84 106 . 84 84 82 75 . 75 90 90 90 . 180 278 249 249 300 300 226 240 Shots Fired 1477 | . 36 24 120 39 156 150 28 48 . 16 177 6 51 . 67 35 12 39 . 69 124 62 19 14 51 23 111 Gun 1158 | . 36 14 59 13 156 150 15 38 . 15 171 2 41 . 64 33 12 39 . 63 79 62 15 . . . 81 Cannon 240 | . . . 61 26 . . . . . . . . . . . . . . . . 45 . . 14 49 23 22 Launcher 69 | . . . . . . . 13 10 . 1 6 4 10 . 3 2 . . . 6 . . 4 . 2 . 8 Special 10 | . . 10 . . . . . . . . . . . . . . . . . . . . . . . . . Kinetic 997 | . 17 7 80 26 156 150 15 38 . 15 171 2 41 . 64 33 12 39 . 60 55 . . . 16 . . Thermal 314 | . 19 17 40 13 . . . . . . . . . . . . . . . . 54 62 15 14 33 23 24 Explosive 29 | . . . . . . . . . . 1 4 . 5 . 3 2 . . . . . . 4 . 2 . 8 Electromagnetic 41 | . . . . . . . 13 10 . . 2 4 5 . . . . . . 6 . . . . . . 1 Phasic 96 | . . . . . . . . . . . . . . . . . . . . 3 15 . . . . . 78 Robot Hit Streak 21 | . 11 5 9 4 12 13 6 8 . 11 17 18 15 . 21 3 3 5 . 5 8 10 8 5 9 4 11 Robot Miss Streak 12 | . 3 2 5 4 10 7 6 7 . 7 8 1 2 . 4 5 3 12 . 4 3 5 1 3 3 3 3 Penetration Max 1 | . . . . . . . . . . . 1 . . . . 1 . 1 . . 1 . . . . . . Secondary Targets 15 | . . . . . 3 1 . . . . 3 . 1 . 1 . 1 . . 1 . 1 1 . . . 2 Max Gunslinging Chain 1 | . . . . . 1 1 . . . . 1 . 1 . 1 . 1 . . 1 . 1 1 . . . 1 Capacitor 63 | . . . . . . . . . . . . . . . . . . . . . . . . . . . 63 Shots Hit Robots 1059 | . 27 9 62 20 136 131 21 40 . 14 143 14 34 . 48 12 6 15 . 46 78 39 14 8 32 18 92 Core Hits 838 | . 12 5 31 7 154 158 22 44 . 27 156 6 33 . 20 12 2 10 . 22 26 13 9 2 11 8 48 Critical Kills 9 | . . . . 1 . . . . . . 1 . . . . 1 . . . 1 2 . . . 3 . . Critical Parts Destroyed 9 | . . . . . . . . . . . . . . . . 1 . 1 . 5 2 . . . . . . Critical Strikes 37 | . 2 . 1 1 . . . . . . 2 . . . . 2 . 1 . 6 6 3 . . 3 1 9 Burn 6 | . 2 . . . . . . . . . . . . . . . . . . . 1 3 . . . . . Meltdown 5 | . . . . 1 . . . . . . . . . . . . . . . . 1 . . . 3 . . Destroy 14 | . . . . . . . . . . . 2 . . . . 2 . 1 . 6 3 . . . . . . Blast 1 | . . . 1 . . . . . . . . . . . . . . . . . . . . . . . . Sunder 8 | . . . . . . . . . . . . . . . . . . . . . . . . . . 1 7 Intensify 3 | . . . . . . . . . . . . . . . . . . . . . 1 . . . . . 2 Melee Attacks 128 | . . . . . 6 2 . . . . 16 10 . . 5 . . . . 11 11 . . 4 1 9 53 Impact . | . . . . . . . . . . . . . . . . . . . . . . . . . . . . Slashing 34 | . . . . . 6 2 . . . . 16 10 . . . . . . . . . . . . . . . Piercing 28 | . . . . . . . . . . . . . . . 5 . . . . 11 11 . . . 1 . . Entropic 66 | . . . . . . . . . . . . . . . . . . . . . . . . 4 . 9 53 Sneak Attacks 24 | . . . . . 6 1 . . . . 5 10 . . . . . . . . . . . . . . 2 Combat Hostiles . | . . . . . . . . . . . . . . . . . . . . . . . . . . . . Follow-up Attacks 4 | . . . . . . . . . . . . . . . . . . . . . . . . . . 1 3 Damage Inflicted 38803 | . 326 112 1238 425 2503 2686 743 1161 . 523 4473 958 1819 . 1561 762 173 477 . 1973 2770 1175 859 326 1871 1029 8860 Guns 18067 | . 326 112 475 135 2019 2418 185 537 . 314 2700 24 587 . 1148 423 173 477 . 1237 1540 1175 304 . . . 1758 Cannons 5009 | . . . 725 277 . . . . . . . . . . . . . . . . 1001 . . 326 1672 556 452 Explosions 8992 | . . . . . . 186 558 624 . 209 1319 175 1168 . 286 339 . . . 538 . . 555 . 199 . 2836 Melee 6145 | . . . . . 450 82 . . . . 398 759 . . 127 . . . . 198 210 . . . . 453 3468 Ramming 590 | . . . 38 13 34 . . . . . 56 . 64 . . . . . . . 19 . . . . 20 346 Kinetic 15385 | . 165 60 657 226 2019 2418 185 537 . 314 2700 24 587 . 1148 423 173 477 . 1138 1140 . . . 994 . . Thermal 5846 | . 161 52 543 186 . 186 . . . . . . . . . . . . . . 1170 1175 304 326 678 556 509 Explosive 5678 | . . . . . . . . . . 209 838 . 590 . 286 339 . . . . . . 555 . 199 . 2662 Electromagnetic 3173 | . . . . . . . 558 624 . . 481 175 578 . . . . . . 538 . . . . . . 219 Impact . | . . . . . . . . . . . . . . . . . . . . . . . . . . . . Slashing 1689 | . . . . . 450 82 . . . . 398 759 . . . . . . . . . . . . . . . Piercing 535 | . . . . . . . . . . . . . . . 127 . . . . 198 210 . . . . . . Entropic 3921 | . . . . . . . . . . . . . . . . . . . . . . . . . . 453 3468 Phasic 1986 | . . . . . . . . . . . . . . . . . . . . 99 231 . . . . . 1656 Highest Corruption 39 | . 2 2 . . . 6 8 8 8 9 2 . 10 10 4 . . . . 24 8 8 8 8 4 5 39 Average Corruption 6 | . 2 2 . . . 3 7 8 8 8 1 . 10 10 3 . . . . 11 6 8 8 1 2 1 15 Corruption Purged 2 | . . . . . . . . . . . 2 . . . . . . . . . . . . . . . . Corruption Blocked 16 | . . . . . . . . . . . . . . . . . . . . . . . . 16 . . . Effects 254 | . 1 10 . . . 14 24 31 3 17 5 . 14 2 9 . . . . 2 20 23 15 4 10 1 49 Message Errors 70 | . 1 2 . . . 3 8 9 2 6 3 . 2 1 2 . . . . . 6 2 6 1 2 1 13 Matter Fused 54 | . . 3 . . . 3 5 4 1 5 2 . 6 . 2 . . . . 1 3 8 5 1 1 . 4 Heat Flow Errors 32 | . . 1 . . . 2 4 6 . 2 . . 3 1 1 . . . . . 2 1 2 . 2 . 5 Energy Discharges 29 | . . . . . . 3 3 3 . 2 . . 2 . . . . . . 1 2 5 . 1 2 . 5 Parts Rejected 4 | . . . . . . . . . . 1 . . . . . . . . . . . . . . . . 3 Data Loss (minor) 25 | . . 2 . . . 1 2 4 . 1 . . . . 2 . . . . . 2 3 2 . 2 . 4 Data Loss (major) 15 | . . 1 . . . 2 2 1 . . . . 1 . . . . . . . 3 1 . 1 1 . 2 Misfires 10 | . . . . . . . . 1 . . . . . . 1 . . . . . 2 1 . . . . 5 Alerts 5 | . . 1 . . . . . 2 . . . . . . 1 . . . . . . . . . . . 1 Misdirections 4 | . . . . . . . . . . . . . . . . . . . . . . . . . . . 4 Weapon Failures 6 | . . . . . . . . 1 . . . . . . . . . . . . . 2 . . . . 3 Overload Shots . | . . . . . . . . . . . . . . . . . . . . . . . . . . . . Overflow Damage 1889 | . . . 3 4 125 . . 14 . . 68 353 5 . . 9 . . . . 42 . 73 1 288 31 873 Projectiles 365 | . . . 3 4 . . . . . . . . . . . . . . . . 42 . . 1 288 12 15 Explosions 466 | . . . . . . . . 14 . . 6 . 5 . . 9 . . . . . . 73 . . . 359 Melee 1058 | . . . . . 125 . . . . . 62 353 . . . . . . . . . . . . . 19 499 Knockbacks 11 | . . . 2 . . . . . . . . . 1 . . . . . . . . . . . 7 . 1 Impact 2 | . . . . . . . . . . . . . 1 . . . . . . . . . . . . . 1 Kinetic 9 | . . . 2 . . . . . . . . . . . . . . . . . . . . . 7 . . Secondary . | . . . . . . . . . . . . . . . . . . . . . . . . . . . . Self-Inflicted Damage 571 | . . . . . . 112 83 46 . . 9 . . . . 66 . . . . . . 12 . 53 . 190 Shots 14 | . . . . . . 1 5 2 . . 1 . . . . 1 . . . . . . 1 . 1 . 2 Rammed 15 | . . . 8 1 6 . . . . . . . . . . . . . . . . . . . . . . Targets Rammed 42 | . . . 9 1 7 . . . . . 4 . 3 . . . . . . . 3 . . . . 1 14 Kicked 25 | . . . . . . . . . . . 4 . 3 . . . . . . . 3 . . . . 1 14 Crushed 2 | . . . 1 . 1 . . . . . . . . . . . . . . . . . . . . . . Highest Temperature 433 | . 162 233 200 169 72 174 272 229 . 129 66 30 184 122 314 120 45 2 . 102 236 433 124 217 152 369 390 Average Temperature 69 | . 63 106 50 85 15 22 84 54 . 40 22 19 55 62 91 47 16 2 . 38 71 120 64 80 77 168 92 Received Heat Transfer 2869 | . 135 39 78 18 405 294 30 183 . 82 221 20 244 . 59 6 45 42 . 228 84 44 49 27 157 21 358 Effects 8 | . . . . . . . . . . . . . . . . . . . . . . 1 . . . 4 3 Shutdowns 3 | . . . . . . . . . . . . . . . . . . . . . . 1 . . . . 2 Energy Bleed 1 | . . . . . . . . . . . . . . . . . . . . . . . . . . 1 . Interference 3 | . . . . . . . . . . . . . . . . . . . . . . . . . . 3 . Damage (minor) 1 | . . . . . . . . . . . . . . . . . . . . . . . . . . . 1 Siege Activations . | . . . . . . . . . . . . . . . . . . . . . . . . . . . . Robots Corrupted 7 | . . . . . . . 2 2 . . 1 . . . . . . . . 2 . . . . . . . Combat Hostiles 7 | . . . . . . . 2 2 . . 1 . . . . . . . . 2 . . . . . . . Parts Fried 16 | . . . . . . . 1 3 . . 4 . 4 . . . . . . 4 . . . . . . . Impact Corruptions 4 | . . . . . . . . . . . . . . . . . . . . . . . . . . . 4 Robots Melted 7 | . . . . 1 . . . . . . . . . . . . . . . . 1 1 1 . 3 . . Combat Hostiles 7 | . . . . 1 . . . . . . . . . . . . . . . . 1 1 1 . 3 . . Parts Melted 30 | . 3 . . 1 . . . . . . . . . . . . . . . 1 7 8 1 . 9 . . Heat Transferred 7852 | . 629 148 1110 333 . 100 . . . . . . . . . . . . . . 1516 1776 407 315 666 445 407 Parts Sabotaged . | . . . . . . . . . . . . . . . . . . . . . . . . . . . . Parts Stolen . | . . . . . . . . . . . . . . . . . . . . . . . . . . . . Parts Stripped . | . . . . . . . . . . . . . . . . . . . . . . . . . . . . Power Chain Reactions . | . . . . . . . . . . . . . . . . . . . . . . . . . . . . Missiles Intercepted . | . . . . . . . . . . . . . . . . . . . . . . . . . . . . Alert | -11 -10 -10 -9 -9 -8 -7 -7 -7 -7 -6 -6 -6 -6 -6 -5 -5 -5 -5 -5 -4 -4 -4 -4 -4 -3 -3 -2 ------- Run | Scr Mat Min Mat Min Mat Fac Low Low Dat Pro Fac Low Low Zio Pro Fac Upp Upp Zhi Pro Fac Upp Upp War Pro Res Res Peak Influence 1374 | . 136 46 301 189 373 390 . . . . 688 . . . . 598 . . . . 737 . . . . 450 1374 Initial 204 | . . . 9 42 . 133 . . . . 50 . . . . 170 . . . . 63 . . . . 101 204 Average 198 | . 24 19 159 78 189 138 . . . . 271 . . . . 438 . . . . 192 . . . . 256 362 Maximum Alert Level 4 | . . . 1 . 1 1 . . . . 2 . . . . 2 . . . . 3 . . . . 2 4 Low Security (%) 62 | 100 100 100 58 100 53 76 . . . . 45 . . . . 16 . . . . 79 . . . . 29 46 Level 1 27 | . . . 41 . 46 23 . . . . 30 . . . . 28 . . . . 8 . . . . 61 20 Level 2 8 | . . . . . . . . . . . 23 . . . . 55 . . . . 10 . . . . 8 21 Level 3 . | . . . . . . . . . . . . . . . . . . . . . 1 . . . . . 7 Level 4 . | . . . . . . . . . . . . . . . . . . . . . . . . . . . 4 Level 5 . | . . . . . . . . . . . . . . . . . . . . . . . . . . . . High Security . | . . . . . . . . . . . . . . . . . . . . . . . . . . . . Max Security . | . . . . . . . . . . . . . . . . . . . . . . . . . . . . Squads Dispatched 40 | . 2 . . . 3 7 . . . . 6 . 1 . . 1 . 1 . . 4 . . . . 1 14 Investigation 4 | . 1 . . . 1 2 . . . . . . . . . . . . . . . . . . . . . Extermination 16 | . . . . . . 4 . . . . 4 . . . . . . . . . 3 . . . . . 5 Reinforcement 14 | . 1 . . . 2 1 . . . . 2 . . . . 1 . . . . 1 . . . . 1 5 Assault 3 | . . . . . . . . . . . . . 1 . . . . 1 . . . . . . . . 1 Garrison 3 | . . . . . . . . . . . . . . . . . . . . . . . . . . . 3 Intercept . | . . . . . . . . . . . . . . . . . . . . . . . . . . . . Searches Triggered . | . . . . . . . . . . . . . . . . . . . . . . . . . . . . Data Miner Redirects 2 | . . . . . . . . . . . . . . . . . . . . . . . . . . 1 1 Construction Impeded . | . . . . . . . . . . . . . . . . . . . . . . . . . . . . Haulers Reinforced 2 | . . . . . . 1 . . . . . . . . . 1 . . . . . . . . . . . Active Scanning Responses . | . . . . . . . . . . . . . . . . . . . . . . . . . . . . Cargo Convoy Interrupts 1 | . . . . . . . . . . . . . . . . . . . . . . . . . . 1 . Stealth | -11 -10 -10 -9 -9 -8 -7 -7 -7 -7 -6 -6 -6 -6 -6 -5 -5 -5 -5 -5 -4 -4 -4 -4 -4 -3 -3 -2 --------- Run | Scr Mat Min Mat Min Mat Fac Low Low Dat Pro Fac Low Low Zio Pro Fac Upp Upp Zhi Pro Fac Upp Upp War Pro Res Res Distress Signals 10 | . . . 1 . 5 1 . . . . . . . . . . . . . . 1 . . 1 . . 1 Communications Jammed 95 | . . . . . . 6 . . . . 21 . . . . 5 . 53 . . 5 . . 3 . . 2 Distress Signals 91 | . . . . . . 6 . . . . 21 . . . . 1 . 53 . . 5 . . 3 . . 2 Times Spotted 551 | . 7 5 19 9 54 38 10 20 . 10 58 2 24 . 23 10 9 22 . 13 24 7 10 51 13 32 81 Peak Tracking Total 16 | . 5 2 3 3 7 5 3 5 . 3 6 2 9 . 5 5 4 8 . 5 3 3 5 10 4 12 16 Tactical Retreats 44 | . . . . . 6 3 2 4 . . 9 . 1 . 4 . . . . . 5 . . . . 1 9 Traps | -11 -10 -10 -9 -9 -8 -7 -7 -7 -7 -6 -6 -6 -6 -6 -5 -5 -5 -5 -5 -4 -4 -4 -4 -4 -3 -3 -2 ------- Run | Scr Mat Min Mat Min Mat Fac Low Low Dat Pro Fac Low Low Zio Pro Fac Upp Upp Zhi Pro Fac Upp Upp War Pro Res Res Traps Triggered 16 | . 1 . 1 . 1 2 . . . . 5 2 . . . 1 . . . . 1 . . 1 . 1 . Indirectly 2 | . . . . . . . . . . . . 2 . . . . . . . . . . . . . . . Trap Hack Attempts . | . . . . . . . . . . . . . . . . . . . . . . . . . . . . Triggered . | . . . . . . . . . . . . . . . . . . . . . . . . . . . . Disarmed . | . . . . . . . . . . . . . . . . . . . . . . . . . . . . Reprogrammed . | . . . . . . . . . . . . . . . . . . . . . . . . . . . . Reused . | . . . . . . . . . . . . . . . . . . . . . . . . . . . . Traps Extracted . | . . . . . . . . . . . . . . . . . . . . . . . . . . . . Installed . | . . . . . . . . . . . . . . . . . . . . . . . . . . . . Triggered 24 | . . 1 . . . . . . . . . 1 . . . . . . . . . . 1 19 2 . . Machines | -11 -10 -10 -9 -9 -8 -7 -7 -7 -7 -6 -6 -6 -6 -6 -5 -5 -5 -5 -5 -4 -4 -4 -4 -4 -3 -3 -2 ---------- Run | Scr Mat Min Mat Min Mat Fac Low Low Dat Pro Fac Low Low Zio Pro Fac Upp Upp Zhi Pro Fac Upp Upp War Pro Res Res Machines Disabled 36 | . . . . . . 6 . . . . 4 . . . . 2 . . . . 17 . . 1 . . 6 Max in Single Turn 6 | . . . . . . 6 . . . . 2 . . . . 2 . . . . 1 . . 1 . . 1 Garrison Access 3 | . . . . . . 1 . . . . . . . . . 1 . . . . . . . . . 1 . Machines Sabotaged . | . . . . . . . . . . . . . . . . . . . . . . . . . . . . Garrisons Compromised . | . . . . . . . . . . . . . . . . . . . . . . . . . . . . Overloaded Fab Kills . | . . . . . . . . . . . . . . . . . . . . . . . . . . . . Hacking | -11 -10 -10 -9 -9 -8 -7 -7 -7 -7 -6 -6 -6 -6 -6 -5 -5 -5 -5 -5 -4 -4 -4 -4 -4 -3 -3 -2 --------- Run | Scr Mat Min Mat Min Mat Fac Low Low Dat Pro Fac Low Low Zio Pro Fac Upp Upp Zhi Pro Fac Upp Upp War Pro Res Res Machines Accessed 56 | . 4 . 6 . 3 9 1 . 2 . 7 2 1 . . 2 . . 6 . . . . 9 . 2 2 Terminals 22 | . 4 . 5 . 3 4 . . . . 5 . . . . . . . . . . . . . . 1 . Fabricators 2 | . . . . . . . . . . . 1 . . . . 1 . . . . . . . . . . . Repair Stations 1 | . . . . . . . . . . . 1 . . . . . . . . . . . . . . . . Recycling Units 3 | . . . . . . 2 . . . . . . . . . . . . . . . . . . . . 1 Scanalyzers 2 | . . . 1 . . 1 . . . . . . . . . . . . . . . . . . . . . Garrison Access 5 | . . . . . . 2 . . . . . . . . . 1 . . . . . . . . . 1 1 Total Hacks 141 | . 9 . 13 . 7 24 1 . 19 . 16 2 1 . . 3 . . 19 . . . . 21 . 2 4 Successful 94 | . 2 . 7 . 3 7 1 . 19 . 9 2 1 . . 1 . . 19 . . . . 21 . 2 . Failed 47 | . 7 . 6 . 4 17 . . . . 7 . . . . 2 . . . . . . . . . . 4 Catastrophic 12 | . 1 . 2 . 1 3 . . . . 3 . . . . 1 . . . . . . . . . . 1 Database Lockouts . | . . . . . . . . . . . . . . . . . . . . . . . . . . . . Manual 62 | . 7 . 2 . 5 4 . . . . 4 . . 1 . 7 . . . . 11 . . . . 9 12 Terminals 48 | . 9 . 10 . 7 12 . . . . 9 . . . . . . . . . . . . . . 1 . Fabricators 5 | . . . . . . . . . . . 3 . . . . 2 . . . . . . . . . . . Repair Stations 4 | . . . . . . . . . . . 4 . . . . . . . . . . . . . . . . Recycling Units 6 | . . . . . . 4 . . . . . . . . . . . . . . . . . . . . 2 Scanalyzers 6 | . . . 3 . . 3 . . . . . . . . . . . . . . . . . . . . . Garrison Access 9 | . . . . . . 5 . . . . . . . . . 1 . . . . . . . . . 1 2 Terminal Hacks 82 | . 2 . 4 . 3 4 1 . 19 . 5 2 1 . . . . . 19 . . . . 21 . 1 . Record 18 | . . . . . . . . . . . 1 1 . . . . . . 7 . . . . 9 . . . Part Schematic 16 | . 1 . . . . . . . 11 . . . . . . . . . 4 . . . . . . . . Robot Schematic 5 | . . . . . . . . . 5 . . . . . . . . . . . . . . . . . . Robot Analysis 4 | . . . . . . . . . . . . . . . . . . . 4 . . . . . . . . Prototype ID Bank 19 | . . . 1 . . . . . 3 . . . . . . . . . 4 . . . . 11 . . . Open Door 4 | . . . . . . . 1 . . . . 1 1 . . . . . . . . . . 1 . . . Open DSF 1 | . . . . . . . . . . . . . . . . . . . . . . . . . . 1 . Branch Access Points 2 | . . . . . . 1 . . . . 1 . . . . . . . . . . . . . . . . Terminal Index 2 | . 1 . . . 1 . . . . . . . . . . . . . . . . . . . . . . Unreport Threat 7 | . . . 1 . 2 2 . . . . 2 . . . . . . . . . . . . . . . . Locate Traps 2 | . . . . . . 1 . . . . 1 . . . . . . . . . . . . . . . . Hauler Manifests 1 | . . . 1 . . . . . . . . . . . . . . . . . . . . . . . . Registered Components 1 | . . . 1 . . . . . . . . . . . . . . . . . . . . . . . . Fabricator Hacks . | . . . . . . . . . . . . . . . . . . . . . . . . . . . . Repair Station Hacks 3 | . . . . . . . . . . . 3 . . . . . . . . . . . . . . . . Scan Component 2 | . . . . . . . . . . . 2 . . . . . . . . . . . . . . . . Repair 1 | . . . . . . . . . . . 1 . . . . . . . . . . . . . . . . Recycling Unit Hacks . | . . . . . . . . . . . . . . . . . . . . . . . . . . . . Scanalyzer 4 | . . . 3 . . 1 . . . . . . . . . . . . . . . . . . . . . Insert Component 2 | . . . 1 . . 1 . . . . . . . . . . . . . . . . . . . . . Analyze 2 | . . . 2 . . . . . . . . . . . . . . . . . . . . . . . . Garrison Access Hacks 3 | . . . . . . 1 . . . . . . . . . 1 . . . . . . . . . 1 . Seal Access 3 | . . . . . . 1 . . . . . . . . . 1 . . . . . . . . . 1 . Unauthorized Hacks 2 | . . . . . . 1 . . . . 1 . . . . . . . . . . . . . . . . Terminals 1 | . . . . . . . . . . . 1 . . . . . . . . . . . . . . . . Botnet 1 | . . . . . . . . . . . 1 . . . . . . . . . . . . . . . . Fabricators . | . . . . . . . . . . . . . . . . . . . . . . . . . . . . Repair Stations . | . . . . . . . . . . . . . . . . . . . . . . . . . . . . Recycling Units 1 | . . . . . . 1 . . . . . . . . . . . . . . . . . . . . . Reject 1 | . . . . . . 1 . . . . . . . . . . . . . . . . . . . . . Scanalyzers . | . . . . . . . . . . . . . . . . . . . . . . . . . . . . Garrison Access . | . . . . . . . . . . . . . . . . . . . . . . . . . . . . Data Cores Recovered . | . . . . . . . . . . . . . . . . . . . . . . . . . . . . Used . | . . . . . . . . . . . . . . . . . . . . . . . . . . . . Hacking Detections 31 | . 4 . 5 . 3 9 . . . . 6 . . . . 1 . . . . . . . . . 1 2 Full Trace Events 3 | . 1 . . . . 2 . . . . . . . . . . . . . . . . . . . . . Feedback Events 1 | . . . . . . 1 . . . . . . . . . . . . . . . . . . . . . Corruption 1 | . . . . . . 1 . . . . . . . . . . . . . . . . . . . . . Feedback Blocked . | . . . . . . . . . . . . . . . . . . . . . . . . . . . . Robot Schematics Acquired 8 | . . . . . . . . . 5 . . . . 3 . . . . . . . . . . . . . Robots Built . | . . . . . . . . . . . . . . . . . . . . . . . . . . . . Authchips . | . . . . . . . . . . . . . . . . . . . . . . . . . . . . Time . | . . . . . . . . . . . . . . . . . . . . . . . . . . . . Total Robot Build Rating . | . . . . . . . . . . . . . . . . . . . . . . . . . . . . Part Schematics Acquired 29 | . 1 . 1 . . . . . 11 . . . . 12 . . . . 4 . . . . . . . . Parts Built . | . . . . . . . . . . . . . . . . . . . . . . . . . . . . Authchips . | . . . . . . . . . . . . . . . . . . . . . . . . . . . . Time . | . . . . . . . . . . . . . . . . . . . . . . . . . . . . Total Part Build Rating . | . . . . . . . . . . . . . . . . . . . . . . . . . . . . Parts Repaired 1 | . . . . . . . . . . . 1 . . . . . . . . . . . . . . . . Time 30 | . . . . . . . . . . . 30 . . . . . . . . . . . . . . . . Parts Recycled . | . . . . . . . . . . . . . . . . . . . . . . . . . . . . Recycled Matter . | . . . . . . . . . . . . . . . . . . . . . . . . . . . . Retrieved Matter . | . . . . . . . . . . . . . . . . . . . . . . . . . . . . Retrieved Components . | . . . . . . . . . . . . . . . . . . . . . . . . . . . . Parts Scanalyzed 1 | . . . 1 . . . . . . . . . . . . . . . . . . . . . . . . Part Schematics Acquired 1 | . . . 1 . . . . . . . . . . . . . . . . . . . . . . . . Parts Damaged . | . . . . . . . . . . . . . . . . . . . . . . . . . . . . Bothacking | -11 -10 -10 -9 -9 -8 -7 -7 -7 -7 -6 -6 -6 -6 -6 -5 -5 -5 -5 -5 -4 -4 -4 -4 -4 -3 -3 -2 ------------ Run | Scr Mat Min Mat Min Mat Fac Low Low Dat Pro Fac Low Low Zio Pro Fac Upp Upp Zhi Pro Fac Upp Upp War Pro Res Res Used RIF Installer . | . . . . . . . . . . . . . . . . . . . . . . . . . . . . Robots Hacked . | . . . . . . . . . . . . . . . . . . . . . . . . . . . . Non-combat . | . . . . . . . . . . . . . . . . . . . . . . . . . . . . Combat . | . . . . . . . . . . . . . . . . . . . . . . . . . . . . Robot Hacks Applied . | . . . . . . . . . . . . . . . . . . . . . . . . . . . . Relay Couplers Released 4 | . . . . . . . . . . . . . . . . . . . . . . . . . . . 4 Programmers 4 | . . . . . . . . . . . . . . . . . . . . . . . . . . . 4 Fabnet Peak Effective % . | . . . . . . . . . . . . . . . . . . . . . . . . . . . . Robots Rewired 7 | . . . . . . . . . . . . . 2 . . . . 2 . . . . . 3 . . . Allies Hacked 2 | . . . . . . . . . . . . . . . 1 . . . . . . . . 1 . . . Hacks Repelled . | . . . . . . . . . . . . . . . . . . . . . . . . . . . . Allies | -11 -10 -10 -9 -9 -8 -7 -7 -7 -7 -6 -6 -6 -6 -6 -5 -5 -5 -5 -5 -4 -4 -4 -4 -4 -3 -3 -2 -------- Run | Scr Mat Min Mat Min Mat Fac Low Low Dat Pro Fac Low Low Zio Pro Fac Upp Upp Zhi Pro Fac Upp Upp War Pro Res Res Total Allies 46 | . . 4 . . . . . . . 1 . . 2 4 . 7 . 2 . . 7 . . 3 . 10 6 Largest Group 10 | . . 3 . . . . . . . 1 . . 1 5 5 7 7 7 3 3 4 4 . 3 . 10 3 Highest-Rated Group 390 | . . 40 . . . . . . . 96 . . 32 193 193 374 374 378 200 200 315 206 . 170 . 390 325 Highest-Rated Ally 269 | . . 31 . . . . . . . 96 . . 32 41 41 99 92 92 85 85 96 89 . 65 . 39 269 Zionite Dispatches 12 | . . . . . . . . . . . . . . . . 2 . . . . 3 . . . . 3 4 Heavy 2 | . . . . . . . . . . . . . . . . 1 . . . . . . . . . . 1 Light 1 | . . . . . . . . . . . . . . . . . . . . . 1 . . . . . . Fire 5 | . . . . . . . . . . . . . . . . 1 . . . . 1 . . . . 3 . Hacker 1 | . . . . . . . . . . . . . . . . . . . . . . . . . . . 1 Experimental 1 | . . . . . . . . . . . . . . . . . . . . . . . . . . . 1 Thermal Resupply 1 | . . . . . . . . . . . . . . . . . . . . . 1 . . . . . . Zionite Resupply 1 | . . . . . . . . . . . . . . . . . . . . . . . . . . . 1 Total Orders 14 | . . . . . . . . . . . 2 . . . . . . . . . 1 . . . . 3 8 ROAM 1 | . . . . . . . . . . . . . . . . . . . . . . . . . . . 1 FOLLOW 1 | . . . . . . . . . . . . . . . . . . . . . . . . . . . 1 DROP 2 | . . . . . . . . . . . . . . . . . . . . . 1 . . . . . 1 EXPLORE 6 | . . . . . . . . . . . 2 . . . . . . . . . . . . . . . 4 RETURN 4 | . . . . . . . . . . . . . . . . . . . . . . . . . . 3 1 Ally Attacks 254 | . . 22 . . . . . . . 21 . . 12 . 28 15 19 35 . 7 19 7 . 6 . 45 18 Total Damage 10589 | . . 303 . . . . . . . 755 . . 154 . 1033 1080 545 1709 . 376 1241 124 . 273 . 1611 1385 Kills 97 | . . 4 . . . . . . . 8 . . 1 . 10 6 8 18 . 2 12 1 . 3 . 17 7 Allies Corrupted 1 | . . . . . . . . . . . . . . . . . . . . . . . . 1 . . . Allies Melted 3 | . . . . . . . . . . . . . . . 1 . . . . . . . . 1 . . 1 Intel | -11 -10 -10 -9 -9 -8 -7 -7 -7 -7 -6 -6 -6 -6 -6 -5 -5 -5 -5 -5 -4 -4 -4 -4 -4 -3 -3 -2 ------- Run | Scr Mat Min Mat Min Mat Fac Low Low Dat Pro Fac Low Low Zio Pro Fac Upp Upp Zhi Pro Fac Upp Upp War Pro Res Res Robot Analysis Total 4 | . . . . . . . . . . . . . . . . . . . 4 . . . . . . . . Derelict Logs Recovered 18 | . . 1 . 1 . . . 2 . 2 . 1 1 2 2 . 1 2 . 1 . 1 1 . . . . Drone Launches 23 | . . . . . . . . . . . 2 . . . . . . . . . . . . . . 4 17 Drone Recoveries 11 | . . . . . . . . . . . . . . . . . . . . . . . . . . 3 8 Zionite Intel Received 1 | . . . . . . . . . . . . . . . . . . . . . 1 . . . . . . Unaware Analyses 1 | . . . . . . . . . . . . . . . . . . . . . 1 . . . . . . Exploration | -11 -10 -10 -9 -9 -8 -7 -7 -7 -7 -6 -6 -6 -6 -6 -5 -5 -5 -5 -5 -4 -4 -4 -4 -4 -3 -3 -2 ------------- Run | Scr Mat Min Mat Min Mat Fac Low Low Dat Pro Fac Low Low Zio Pro Fac Upp Upp Zhi Pro Fac Upp Upp War Pro Res Res Turns Passed 26296 | 80 463 677 1180 919 2909 2525 799 764 174 620 1785 840 1420 1090 727 543 778 466 220 716 1152 668 581 1266 751 573 1610 Spaces Moved 16232 | 42 241 379 602 541 1085 1549 596 512 123 376 1069 606 1032 875 476 326 543 330 157 392 647 446 431 925 473 391 1067 Core 41 | 1 . . . . . . . . . . . . . . . . . . . . . . . . . . 40 Treads 3555 | 41 241 379 602 541 1075 676 . . . . . . . . . . . . . . . . . . . . . Legs 12626 | . . . . . . 873 596 512 123 376 1069 606 1032 875 476 326 543 330 157 392 647 446 431 925 473 391 1027 Wheels 10 | . . . . . 10 . . . . . . . . . . . . . . . . . . . . . . Hover . | . . . . . . . . . . . . . . . . . . . . . . . . . . . . Flight . | . . . . . . . . . . . . . . . . . . . . . . . . . . . . Fastest Speed 50 | 50 160 160 160 160 160 120 120 120 120 120 114 120 120 120 120 120 120 120 120 116 118 120 120 120 120 110 50 Average Speed 134 | 157 160 160 160 160 239 138 121 121 120 154 118 120 120 120 120 120 120 120 120 118 119 120 120 120 134 119 110 Slowest Speed 243 | 160 160 160 160 160 243 240 190 190 120 187 190 120 120 120 120 123 120 120 120 120 190 120 120 120 190 190 210 Overloaded Moves . | . . . . . . . . . . . . . . . . . . . . . . . . . . . . Propulsion Burnouts . | . . . . . . . . . . . . . . . . . . . . . . . . . . . . Robots Hopped 1 | . . . . . . . 1 . . . . . . . . . . . . . . . . . . . . Cave-ins Triggered 1 | . . . . . . . . . . . . . . . . . . . . . . . . . . . 1 Teleports 1 | . . . . . . . . . . . . . . . . . . . . . . . . 1 . . . Exploration Rate (%) 56 | 4 49 80 54 98 73 41 73 57 70 66 28 69 83 82 62 7 73 61 62 43 27 50 73 83 61 11 44 Regions Visited 27 Branch Regions 18 Pre-discovered Areas 9 | . . . . 1 . . . . . . . 1 1 1 1 . . . 3 . . . 1 . . . . Known Exits Taken 7 | . . . . 1 . 1 . . . 1 1 . . . 1 . . . . . 1 1 . . . . . Unknown Exits Taken 20 | 1 1 1 1 . 1 . 1 1 1 . . 1 1 1 . 1 1 1 1 1 . . 1 1 1 1 . Scrap Searched 33 | . . . . 2 . . 3 . . 4 . 3 6 4 . . 2 1 . . . 3 2 . 3 . . Spaces Dug 77 | . . . . . . 1 . . . . 9 . . . . . . . . . 21 . . 4 . 1 41 Terrain Destroyed 665 | . . 1 11 7 . 6 . . . 12 41 . 56 . 31 47 17 46 . 48 88 4 42 7 46 8 147 Melee 19 | . . . . . . 1 . . . . 9 . . . . . . . . . 5 . . 4 . . . Projectile 323 | . . 1 11 7 . . . . . . 2 . . . . 29 17 46 . 48 83 4 2 3 13 8 49 AOE 323 | . . . . . . 5 . . . 12 30 . 56 . 31 18 . . . . . . 40 . 33 . 98 Terrain Rammed . | . . . . . . . . . . . . . . . . . . . . . . . . . . . . Walls Destroyed . | . . . . . . . . . . . . . . . . . . . . . . . . . . . . Machines Disabled . | . . . . . . . . . . . . . . . . . . . . . . . . . . . . Actions | -11 -10 -10 -9 -9 -8 -7 -7 -7 -7 -6 -6 -6 -6 -6 -5 -5 -5 -5 -5 -4 -4 -4 -4 -4 -3 -3 -2 --------- Run | Scr Mat Min Mat Min Mat Fac Low Low Dat Pro Fac Low Low Zio Pro Fac Upp Upp Zhi Pro Fac Upp Upp War Pro Res Res Total 19392 | 53 282 405 734 565 1276 1828 636 613 150 404 1436 697 1175 918 579 448 660 369 189 563 913 541 478 1073 537 472 1398 Wait 1210 | . 13 4 27 6 47 120 11 56 11 6 165 45 52 30 58 74 111 6 16 65 111 49 29 43 6 4 45 Move 16203 | 41 240 378 601 540 1084 1548 593 511 122 375 1068 605 1031 874 475 325 542 329 156 391 646 445 430 924 472 390 1067 Hop 1 | . . . . . . . 1 . . . . . . . . . . . . . . . . . . . . Pick Up 254 | 6 5 2 14 1 25 22 2 5 2 5 15 10 7 5 3 6 1 . 3 16 22 6 1 24 5 13 28 Fast Attach 174 | 6 3 1 4 . 11 17 2 3 6 1 16 . 6 2 3 10 . . 6 10 15 3 1 7 9 8 24 Attach 110 | . . . 2 . 4 5 . . 1 4 10 8 6 . 2 3 1 . . 11 12 . . 10 6 5 20 Detach 38 | . 2 . 1 . . 3 . 1 . . 5 . . . 1 4 . . . 4 2 1 . 2 2 5 5 Swap 205 | . 1 2 11 2 9 13 9 11 . 4 31 5 6 . 3 5 1 2 . 18 20 6 8 4 5 6 23 Drop 337 | . . 1 25 2 31 43 6 8 8 3 33 10 11 7 4 8 . . 8 13 21 10 2 21 8 19 35 Fire 604 | . 18 17 40 13 52 50 12 18 . 6 63 4 24 . 24 13 4 13 . 24 50 21 7 6 23 12 90 Melee 120 | . . . . . 6 2 . . . . 16 10 . . 5 . . . . 11 11 . . 4 1 7 47 Ram . | . . . . . . . . . . . . . . . . . . . . . . . . . . . . Kick 25 | . . . . . . . . . . . 4 . 3 . . . . . . . 3 . . . . 1 14 Crush 17 | . . . 9 1 7 . . . . . . . . . . . . . . . . . . . . . . Escape Stasis 15 | . . . . . . 5 . . . . 10 . . . . . . . . . . . . . . . . Rewire 79 | . . . . . . . . . . . . . 29 . 1 . . 19 . . . . . 28 . 2 . Trap . | . . . . . . . . . . . . . . . . . . . . . . . . . . . . Miscellaneous . | . . . . . . . . . . . . . . . . . . . . . . . . . . . . Route ------- -11/Scrapyard -10/Materials (discovered 3 exits: *Mat x2 / [*Min]) -10/Mines -9/Materials (discovered 3 exits: *Mat / [*Min x2]) -9/Mines (discovered 2 exits: *Mat x2) -8/Materials (discovered 3 exits: *Fac x2 / [*Sto]) -7/Factory (discovered 4 exits: *Fac x2 / *Low x2) -7/Lower Caves -7/Lower Caves -7/Data Miner -6/Proximity Caves -6/Factory (discovered 5 exits: Fac / *Low x2 / *Ext x2) -6/Lower Caves -6/Lower Caves -6/Zion -5/Proximity Caves -5/Factory (discovered 2 exits: *Fac / [*Upp]) -5/Upper Caves -5/Upper Caves -5/Zhirov -4/Proximity Caves -4/Factory -4/Upper Caves -4/Upper Caves (discovered 2 exits: *Res / *War) -4/Warlord -3/Proximity Caves -3/Research -2/Research History --------- Turn | Location | Event 12 | -11/Scrapyard | Discovered new exit (range 14) 81 | -11/Scrapyard | Entered Materials 222 | -10/Materials | Discovered new exit (range 7) 311 | -10/Materials | Build established: Mutant 504 | -10/Materials | Discovered new exit (range 10) 527 | -10/Materials | Discovered new exit (range 10) 544 | -10/Materials | Entered Mines 655 | -10/Mines | Received a Mining Laser from a helpful Derelict 678 | -10/Mines | Discovered new exit (range 4) 729 | -10/Mines | Assisted by bots powering up and referring to "LRC-V3" 1020 | -10/Mines | Excavation squad dispatched 1020 | -10/Mines | A large section of the Mines collapsed 1102 | -10/Mines | Learned Materials terminal intel 1221 | -10/Mines | Entered Materials 1221 | -9/Materials | Evolved 2 slots: Propulsion x1, Weapon x1 1222 | -9/Materials | Loaded intel: 12 terminal locations 1601 | -9/Materials | Discovered new exit (range 4) 1821 | -9/Materials | Discovered new exit (range 16) 2017 | -9/Materials | Discovered new exit (range 16) 2059 | -9/Materials | Build established: Scavenger-Gunner 2401 | -9/Materials | Entered Mines 2547 | -9/Mines | Identified exit to Materials 2902 | -9/Mines | Learned location of Storage (-8) 3110 | -9/Mines | Discovered exit to Materials (range 11) 3117 | -9/Mines | Received a Rocket Launcher from a helpful Derelict 3179 | -9/Mines | Joined a pair of Derelicts in attacking an 0b10 outpost 3232 | -9/Mines | Found a hidden stash of uninstalled traps 3320 | -9/Mines | Entered Materials 3320 | -8/Materials | Evolved 2 slots: Utility x2 3581 | -8/Materials | Destroyed 8 combat bots 4334 | -8/Materials | Discovered new exit (range 15) 4872 | -8/Materials | Discovered new exit (range 16) 5468 | -8/Materials | Discovered new exit (range 9) 6208 | -8/Materials | Build established: Mutant 6229 | -8/Materials | Entered Factory 6229 | -7/Factory | Evolved 2 slots: Propulsion x1, Utility x1 6632 | -7/Factory | Build established: Gunner 7776 | -7/Factory | Discovered new exit (range 9) 8472 | -7/Factory | Discovered new exit (range 15) 8530 | -7/Factory | Identified exit to Lower Caves 8538 | -7/Factory | Discovered new exit (range 14) 8754 | -7/Factory | Entered Lower Caves 9232 | -7/Lower Caves | Build established: Tank 9296 | -7/Lower Caves | Found Prototype Device 9320 | -7/Lower Caves | Attracted the attention of an 0b10 outpost 9542 | -7/Lower Caves | Discovered new exit (range 8) 9553 | -7/Lower Caves | Entered another Lower Caves area 9570 | -7/Lower Caves | Encountered a Warlord checkpoint 9652 | -7/Lower Caves | Attracted the attention of an 0b10 checkpoint 9930 | -7/Lower Caves | Learned 4 Factory zone layouts 10027 | -7/Lower Caves | Spotted B-75 Beast 10063 | -7/Lower Caves | Learned location of 1 exit from Factory 10252 | -7/Lower Caves | Discovered new exit (range 6) 10286 | -7/Lower Caves | Found Imp. Powered Armor 10317 | -7/Lower Caves | Entered Data Miner 10319 | -7/Data Miner | Discovered new exit (range 6) 10324 | -7/Data Miner | Identified Heart of Steel 10395 | -7/Data Miner | Met Data Miner 10444 | -7/Data Miner | Received God Mode back door access code from Data Miner 10491 | -7/Data Miner | Entered Proximity Caves 10642 | -6/Proximity Caves | Escorted by Enhanced Grunt 10644 | -6/Proximity Caves | Learned Factory garrison access intel 10847 | -6/Proximity Caves | Identified exit to Factory 11111 | -6/Proximity Caves | Entered Factory 11111 | -6/Factory | Evolved 2 slots: Power x1, Propulsion x1 11112 | -6/Factory | Identified exit to Factory 11113 | -6/Factory | Identified exit to Extension 11114 | -6/Factory | Loaded intel: 4 garrison access locations 11180 | -6/Factory | Repaired Broken Imp. Shield Generator 11550 | -6/Factory | Identified exit to Lower Caves 12896 | -6/Factory | Entered Lower Caves 13525 | -6/Lower Caves | Build established: Mutant 13556 | -6/Lower Caves | Encountered a Warlord checkpoint 13565 | -6/Lower Caves | Discovered new exit (range 14) 13736 | -6/Lower Caves | Entered another Lower Caves area 13954 | -6/Lower Caves | Attracted the attention of an 0b10 checkpoint 14004 | -6/Lower Caves | Learned location of Extension (-6) 14403 | -6/Lower Caves | Build established: Tank 14681 | -6/Lower Caves | Attracted the attention of an 0b10 outpost 14801 | -6/Lower Caves | System corruption reached 10% 14814 | -6/Lower Caves | Destroyed 8 combat bots 15109 | -6/Lower Caves | Discovered new exit (range 5) 15156 | -6/Lower Caves | Entered Zion 15156 | -6/Zion | Accompanied by 1 ally 15185 | -6/Zion | Found Prototype Device 15185 | -6/Zion | Identified Phasing AFG 15207 | -6/Zion | System corruption cleaned by Quarantine Array 15264 | -6/Zion | Discovered new exit (range 13) 15475 | -6/Zion | Learned 8 Factory zone layouts 15567 | -6/Zion | Learned Factory stockpile data 15608 | -6/Zion | Learned location of Warlord (-4) 15653 | -6/Zion | Found CR-A16's Pointy Stick 15904 | -6/Zion | Imprinted 15906 | -6/Zion | Declared Zion's savior 16005 | -6/Zion | Received a visual enhancement algorithm 16246 | -6/Zion | Entered Proximity Caves 16246 | -5/Proximity Caves | Accompanied by 5 allies 16395 | -5/Proximity Caves | Learned Factory stockpile data 16563 | -5/Proximity Caves | P-70 Sage assimilated allied OS-8GT(M) 16956 | -5/Proximity Caves | Discovered exit to Factory (range 7) 16973 | -5/Proximity Caves | Entered Factory 16973 | -5/Factory | Evolved 2 slots: Propulsion x1, Utility x1 16978 | -5/Factory | Heart of Steel transformed into Warbot 17025 | -5/Factory | Build established: Mutant 17034 | -5/Factory | Spotted B-75 Beast 17064 | -5/Factory | Allies destroyed B-75 Beast 17203 | -5/Factory | Discovered new exit (range 19) 17228 | -5/Factory | Zion Heavy squad teleported in 17263 | -5/Factory | Discovered new exit (range 10) 17350 | -5/Factory | Zion Fire squad teleported in 17408 | -5/Factory | Build established: Scavenger-Tank 17516 | -5/Factory | Entered Upper Caves 17516 | -5/Upper Caves | Accompanied by 7 allies (Warbot) 17517 | -5/Upper Caves | Encountered a Warlord checkpoint 17981 | -5/Upper Caves | Learned Factory stockpile data 18073 | -5/Upper Caves | Discovered new exit (range 12) 18294 | -5/Upper Caves | Entered another Upper Caves area 18294 | -5/Upper Caves | Accompanied by 6 allies (Warbot) 18434 | -5/Upper Caves | Attracted the attention of an 0b10 outpost 18546 | -5/Upper Caves | Learned location of 1 exit from Factory 18557 | -5/Upper Caves | Learned Factory terminal intel 18659 | -5/Upper Caves | Discovered new exit (range 15) 18760 | -5/Upper Caves | Entered Zhirov 18760 | -5/Zhirov | Accompanied by 3 allies 18760 | -5/Zhirov | Discovered new exit (range 3) 18782 | -5/Zhirov | Met Zhirov 18804 | -5/Zhirov | Learned location of Quarantine (-2) 18804 | -5/Zhirov | Learned location of Testing (-3) 18804 | -5/Zhirov | Learned location of Command (-1) 18824 | -5/Zhirov | Zhirov requested help retrieving the SGEMP Prototype 18847 | -5/Zhirov | Found Alien Artifact 18847 | -5/Zhirov | Identified Integrated Reactor 18847 | -5/Zhirov | Installed Integrated Reactor, increased core energy generation (+10) 18869 | -5/Zhirov | Found Alien Artifact 18980 | -5/Zhirov | Entered Proximity Caves 18980 | -4/Proximity Caves | Accompanied by 3 allies 19050 | -4/Proximity Caves | Learned Research stockpile data 19239 | -4/Proximity Caves | Found Prototype Protection 19239 | -4/Proximity Caves | Identified Zio. Weapon Casing 19244 | -4/Proximity Caves | Lost 5 parts (3p2u) 19339 | -4/Proximity Caves | Spotted B-86 Titan 19391 | -4/Proximity Caves | Revealed the true nature of CR-A16's Pointy Stick 19397 | -4/Proximity Caves | Destroyed B-86 Titan 19405 | -4/Proximity Caves | Found Hvy. Reflective Plating 19424 | -4/Proximity Caves | Lost 7 parts (2p2n2u1w) 19602 | -4/Proximity Caves | System corruption reached 10% 19678 | -4/Proximity Caves | Discovered new exit (range 4) 19696 | -4/Proximity Caves | Entered Factory 19696 | -4/Factory | Evolved 2 slots: Utility x2 19697 | -4/Factory | Identified exit to Upper Caves 19699 | -4/Factory | Loaded intel: 26 terminal locations 19789 | -4/Factory | Spotted B-86 Titan 20399 | -4/Factory | Lost 14 parts (2p7n3u2w) 20544 | -4/Factory | Retrieved Zion intel report: Unaware Analyses 20636 | -4/Factory | Zion Thermal Resupply teleported in 20695 | -4/Factory | Zion Light squad teleported in 20827 | -4/Factory | Zion Fire squad teleported in 20848 | -4/Factory | Entered Upper Caves 20848 | -4/Upper Caves | Accompanied by 4 allies 20960 | -4/Upper Caves | Spotted B-86 Titan 20966 | -4/Upper Caves | Allies destroyed B-86 Titan 21129 | -4/Upper Caves | Identified exit to Upper Caves 21516 | -4/Upper Caves | Entered another Upper Caves area 21532 | -4/Upper Caves | Attracted the attention of an 0b10 checkpoint 21590 | -4/Upper Caves | Discovered new exit (range 13) 22064 | -4/Upper Caves | Discovered new exit (range 20) 22097 | -4/Upper Caves | Entered Warlord 22125 | -4/Warlord | Discovered new exit (range 21) 22138 | -4/Warlord | System corruption cleaned by Quarantine Array 22198 | -4/Warlord | Build established: Scavenger-Skirmisher 22476 | -4/Warlord | Visited the Vortex Lab 22490 | -4/Warlord | Found Prototype Piercing Weapon 22491 | -4/Warlord | Warlord's base attacked by MAIN.C 22492 | -4/Warlord | Found Prototype Piercing Weapon 22495 | -4/Warlord | Found Prototype Launcher 22676 | -4/Warlord | Rebuked by Warlord 22814 | -4/Warlord | Spotted Executioner 22841 | -4/Warlord | Warlord forces counterattacked 22968 | -4/Warlord | Identified Vortex Lance (x2) 23016 | -4/Warlord | Found Prototype Device 23016 | -4/Warlord | Identified Wardrone Bay 23166 | -4/Warlord | Warlord base infiltrated, sounded retreat 23171 | -4/Warlord | Spotted Executioner 23171 | -4/Warlord | Spotted Executioner 23172 | -4/Warlord | Identified Transdimensional Reconstructor 23172 | -4/Warlord | Warped through subspace 23225 | -4/Warlord | Spotted Striker 23236 | -4/Warlord | Found Prototype Device 23305 | -4/Warlord | Found Prototype Ballistic Cannon 23363 | -4/Warlord | Entered Proximity Caves 23365 | -3/Proximity Caves | Identified Minesniffer Drone Bay 23493 | -3/Proximity Caves | Attracted the attention of an 0b10 checkpoint 23523 | -3/Proximity Caves | Build established: Scavenger-Tank 23791 | -3/Proximity Caves | Identified Hvy. Autocannon 23823 | -3/Proximity Caves | Lost 5 parts (1p1n2u1w) 23882 | -3/Proximity Caves | Spotted B-86 Titan 23899 | -3/Proximity Caves | Destroyed B-86 Titan 23904 | -3/Proximity Caves | Found Hvy. Reflective Plating 24070 | -3/Proximity Caves | Discovered new exit (range 4) 24114 | -3/Proximity Caves | Entered Research 24114 | -3/Research | Evolved 2 slots: Utility x2 24238 | -3/Research | Zion Fire squad teleported in 24280 | -3/Research | Zion Fire squad teleported in 24298 | -3/Research | Zion Fire squad teleported in 24423 | -3/Research | Build established: Scavenger-Mutant 24628 | -3/Research | Discovered new exit (range 16) 24650 | -3/Research | Cargo convoy interrupted 24653 | -3/Research | Spotted Striker 24653 | -3/Research | Spotted Striker 24655 | -3/Research | Spotted Executioner 24675 | -3/Research | Incoming assault squad redirected 24687 | -3/Research | Entered another Research area 24687 | -2/Research | Evolved 2 slots: Power x1, Utility x1 24719 | -2/Research | Zion Zionite Resupply teleported in 25012 | -2/Research | Build established: Generator-Mutant 25074 | -2/Research | Found Prototype Launcher 25121 | -2/Research | Zion Hacker squad teleported in 25128 | -2/Research | Found Quantum Capacitor 25132 | -2/Research | Zion Heavy squad teleported in 25405 | -2/Research | Crushed by falling debris 25500 | -2/Research | Spotted B-90 Cyclops 25543 | -2/Research | System corruption reached 10% 25568 | -2/Research | Garrison activated, responded to threat 25706 | -2/Research | Found Prototype Processor 25706 | -2/Research | Identified Exp. Target Analyzer 25898 | -2/Research | Zion Experimental squad teleported in 25980 | -2/Research | Identified Ragnarok Missile Launcher 25989 | -2/Research | Spotted B-90 Cyclops 26120 | -2/Research | Terminal network hard line cut 26216 | -2/Research | First assault squad dispatched 26256 | -2/Research | System corruption reached 30% 26270 | -2/Research | Destroyed 7 combat bots 26277 | -2/Research | Released all parts (6) 26283 | -2/Research | Incoming assault squad redirected 26288 | -2/Research | Core integrity fell below 50% 26297 | -2/Research | Self-destructed Last Messages --------------- 26267_ Zio. Supercomposite Leg destroyed. 26268_ Exp. Cooling System destroyed. 26269_ Enh. Nova Cannon destroyed. 26269_ Ragnarok Missile Launcher destroyed. 26270_ Biometal Leg destroyed. 26270_ Dropped Hcp. Storage Unit. 26270_ Penetrated by Slug. 26270_ Adv. Force Field destroyed. 26271_ Zio. Supercomposite Leg destroyed. 26272_ Exp. Biometal Leg destroyed. 26276_ U/3|